[Event "Titled Tuesday Blitz July 05 Early 2022"]
[White "Timofeev, Artyom"]
[Black "Bortnyk, Olexandr"]
[WhiteFideId "4140419"]
[BlackFideId "14120828"]
[WhiteElo "2578"]
[BlackElo "2723"]
[Result "0-1"]
[Round "11"]
[TimeControl "180+1"]
[Date "2022.07.05"]
[WhiteClock "0:00:17"]
[BlackClock "0:00:17"]

1. e4 {[%clk 0:03:00]}  d6 {[%clk 0:03:00]} 2. d4 {[%clk 0:03:00]}  Nf6 {[%clk 0:03:01]} 3. Nc3 {[%clk 0:03:00]}  Nbd7 {[%clk 0:03:01]} 4. g4 {[%clk 0:02:57]}  h6 {[%clk 0:03:00]} 5. h4 {[%clk 0:02:56]}  e5 {[%clk 0:03:00]} 6. g5 {[%clk 0:02:50]}  hxg5 {[%clk 0:02:58]} 7. Bxg5 {[%clk 0:02:51]}  c6 {[%clk 0:02:47]} 8. Nf3 {[%clk 0:02:43]}  Qb6 {[%clk 0:02:42]} 9. a3 {[%clk 0:02:37]}  exd4 {[%clk 0:02:38]} 10. Nxd4 {[%clk 0:02:36]}  Ne5 {[%clk 0:02:38]} 11. Be2 {[%clk 0:02:17]}  Bg4 {[%clk 0:01:55]} 12. Nb3 {[%clk 0:02:10]}  Be7 {[%clk 0:01:35]} 13. Be3 {[%clk 0:01:53]}  Qc7 {[%clk 0:01:28]} 14. Nd4 {[%clk 0:01:46]}  g6 {[%clk 0:01:10]} 15. Qd2 {[%clk 0:01:41]}  Bxe2 {[%clk 0:01:06]} 16. Qxe2 {[%clk 0:01:39]}  Nfg4 {[%clk 0:01:01]} 17. O-O-O {[%clk 0:01:35]}  Nxe3 {[%clk 0:00:54]} 18. Qxe3 {[%clk 0:01:35]}  Rxh4 {[%clk 0:00:51]} 19. Rxh4 {[%clk 0:01:30]}  Bxh4 {[%clk 0:00:52]} 20. f4 {[%clk 0:01:30]}  Nc4 {[%clk 0:00:52]} 21. Qe2 {[%clk 0:01:24]}  Nb6 {[%clk 0:00:46]} 22. Qh2 {[%clk 0:01:00]}  Bf6 {[%clk 0:00:44]} 23. e5 {[%clk 0:01:00]}  dxe5 {[%clk 0:00:45]} 24. Ne4 {[%clk 0:01:00]}  O-O-O {[%clk 0:00:41]} 25. Nf3 {[%clk 0:00:37]}  Rxd1+ {[%clk 0:00:41]} 26. Kxd1 {[%clk 0:00:37]}  exf4 {[%clk 0:00:38]} 27. c3 {[%clk 0:00:34]}  Be7 {[%clk 0:00:28]} 28. Qh7 {[%clk 0:00:32]}  Qd7+ {[%clk 0:00:22]} 29. Kc2 {[%clk 0:00:31]}  Qf5 {[%clk 0:00:20]} 30. Nd2 {[%clk 0:00:28]}  Nd5 {[%clk 0:00:20]} 31. Qh8+ {[%clk 0:00:24]}  Kc7 {[%clk 0:00:20]} 32. Qd4 {[%clk 0:00:24]}  a6 {[%clk 0:00:16]} 33. Kc1 {[%clk 0:00:18]}  g5 {[%clk 0:00:17]} 34. c4 {[%clk 0:00:17]}  Ne3 {[%clk 0:00:17]} 35. c5 {[%clk 0:00:16]}  g4 {[%clk 0:00:17]} 36. Nd6 {[%clk 0:00:17]}  Qc2# {[%clk 0:00:17]} 0-1


[Site "https://www.chess.com"]

[Event "Titled Tuesday Blitz July 05 Early 2022"]
[White "Vakhlamov, Igor L."]
[Black "Zhalmakhanov, Ramazan"]
[WhiteFideId "24126748"]
[BlackFideId "13706357"]
[WhiteElo "2401"]
[BlackElo "2397"]
[Result "1/2-1/2"]
[Round "11"]
[TimeControl "180+1"]
[Date "2022.07.05"]
[WhiteClock "0:02:39"]
[BlackClock "0:01:54"]

1. e4 {[%clk 0:03:00]}  Nf6 {[%clk 0:03:00]} 2. e5 {[%clk 0:03:00]}  Nd5 {[%clk 0:03:01]} 3. c4 {[%clk 0:03:00]}  Nb6 {[%clk 0:03:01]} 4. c5 {[%clk 0:03:01]}  Nd5 {[%clk 0:03:01]} 5. Bc4 {[%clk 0:03:02]}  e6 {[%clk 0:03:02]} 6. d4 {[%clk 0:03:02]}  d6 {[%clk 0:03:01]} 7. cxd6 {[%clk 0:03:03]}  cxd6 {[%clk 0:03:02]} 8. Nf3 {[%clk 0:03:04]}  Nc6 {[%clk 0:03:03]} 9. O-O {[%clk 0:03:04]}  Be7 {[%clk 0:03:02]} 10. Qe2 {[%clk 0:03:04]}  O-O {[%clk 0:03:02]} 11. Rd1 {[%clk 0:03:02]}  b6 {[%clk 0:02:36]} 12. Bxd5 {[%clk 0:02:40]}  exd5 {[%clk 0:02:35]} 13. Nc3 {[%clk 0:02:41]}  Be6 {[%clk 0:02:32]} 14. Bf4 {[%clk 0:02:39]}  Rc8 {[%clk 0:02:12]} 15. Rac1 {[%clk 0:02:38]}  dxe5 {[%clk 0:02:03]} 16. Nxe5 {[%clk 0:02:39]}  Nxe5 {[%clk 0:01:54]} 1/2-1/2


[Site "https://www.chess.com"]

[Event "Titled Tuesday Blitz July 05 Early 2022"]
[White "Vasquez Schroeder, Rodrigo"]
[Black "Martinez Alcantara, Jose Eduardo"]
[WhiteFideId "3400042"]
[BlackFideId "3805662"]
[WhiteElo "2567"]
[BlackElo "2703"]
[Result "0-1"]
[Round "11"]
[TimeControl "180+1"]
[Date "2022.07.05"]
[WhiteClock "0:00:17"]
[BlackClock "0:00:14"]

1. e4 {[%clk 0:03:00]}  c5 {[%clk 0:02:59]} 2. Nf3 {[%clk 0:03:00]}  d6 {[%clk 0:02:59]} 3. d4 {[%clk 0:03:01]}  cxd4 {[%clk 0:03:00]} 4. Nxd4 {[%clk 0:03:01]}  Nf6 {[%clk 0:03:01]} 5. Nc3 {[%clk 0:03:02]}  Nc6 {[%clk 0:03:02]} 6. Bg5 {[%clk 0:03:01]}  e6 {[%clk 0:03:03]} 7. Qd2 {[%clk 0:03:02]}  a6 {[%clk 0:03:03]} 8. O-O-O {[%clk 0:03:02]}  Bd7 {[%clk 0:03:04]} 9. f4 {[%clk 0:03:00]}  Be7 {[%clk 0:03:02]} 10. Nf3 {[%clk 0:02:59]}  b5 {[%clk 0:03:02]} 11. Bxf6 {[%clk 0:03:00]}  gxf6 {[%clk 0:03:02]} 12. Kb1 {[%clk 0:03:00]}  b4 {[%clk 0:02:48]} 13. Ne2 {[%clk 0:02:59]}  Qb6 {[%clk 0:02:47]} 14. f5 {[%clk 0:02:59]}  e5 {[%clk 0:02:44]} 15. Ng3 {[%clk 0:02:57]}  h5 {[%clk 0:02:44]} 16. Bc4 {[%clk 0:02:54]}  Qc5 {[%clk 0:02:44]} 17. Qe2 {[%clk 0:02:50]}  Na5 {[%clk 0:02:35]} 18. Bd5 {[%clk 0:02:47]}  Bb5 {[%clk 0:02:33]} 19. Qd2 {[%clk 0:02:34]}  Rc8 {[%clk 0:02:30]} 20. b3 {[%clk 0:02:30]}  Bd8 {[%clk 0:02:24]} 21. Rhe1 {[%clk 0:02:21]}  Nc6 {[%clk 0:01:57]} 22. Nf1 {[%clk 0:02:16]}  Ne7 {[%clk 0:01:55]} 23. Ne3 {[%clk 0:02:16]}  Bb6 {[%clk 0:01:54]} 24. Bc4 {[%clk 0:02:13]}  Rd8 {[%clk 0:01:42]} 25. Qd3 {[%clk 0:02:11]}  Rg8 {[%clk 0:01:39]} 26. g3 {[%clk 0:02:11]}  Qc6 {[%clk 0:01:38]} 27. Nd2 {[%clk 0:02:08]}  Bd4 {[%clk 0:01:36]} 28. Nd5 {[%clk 0:02:04]}  Nxd5 {[%clk 0:01:15]} 29. exd5 {[%clk 0:02:04]}  Qb6 {[%clk 0:01:16]} 30. Ne4 {[%clk 0:01:54]}  Ke7 {[%clk 0:01:13]} 31. Qd2 {[%clk 0:01:39]}  Bxc4 {[%clk 0:00:56]} 32. bxc4 {[%clk 0:01:39]}  Rh8 {[%clk 0:00:48]} 33. Qd3 {[%clk 0:01:25]}  Bc5 {[%clk 0:00:40]} 34. Kc1 {[%clk 0:01:16]}  a5 {[%clk 0:00:39]} 35. Kd2 {[%clk 0:01:15]}  Rdg8 {[%clk 0:00:39]} 36. h3 {[%clk 0:01:15]}  Bd4 {[%clk 0:00:38]} 37. Ke2 {[%clk 0:01:14]}  Bc5 {[%clk 0:00:32]} 38. Kf3 {[%clk 0:01:14]}  Rg5 {[%clk 0:00:29]} 39. Nxg5 {[%clk 0:01:11]}  fxg5 {[%clk 0:00:30]} 40. f6+ {[%clk 0:01:12]}  Kxf6 {[%clk 0:00:31]} 41. Kg2 {[%clk 0:01:12]}  Kg7 {[%clk 0:00:28]} 42. Rf1 {[%clk 0:01:12]}  Qd8 {[%clk 0:00:28]} 43. Qf5 {[%clk 0:01:12]}  Qe7 {[%clk 0:00:28]} 44. h4 {[%clk 0:01:10]}  gxh4 {[%clk 0:00:24]} 45. gxh4 {[%clk 0:01:10]}  Rh6 {[%clk 0:00:24]} 46. Kh3 {[%clk 0:01:10]}  Rg6 {[%clk 0:00:22]} 47. Qxh5 {[%clk 0:01:08]}  Be3 {[%clk 0:00:22]} 48. Rf5 {[%clk 0:01:03]}  Bf4 {[%clk 0:00:19]} 49. Rd3 {[%clk 0:00:33]}  Qa7 {[%clk 0:00:19]} 50. Rf3 {[%clk 0:00:18]}  Qg1 {[%clk 0:00:15]} 51. Rf6 {[%clk 0:00:17]}  Qh2# {[%clk 0:00:14]} 0-1


[Site "https://www.chess.com"]

[Event "Titled Tuesday Blitz July 05 Early 2022"]
[White "Volkov, Maksim"]
[Black "Navarrete Mendez, Gonzalo Alberto"]
[WhiteFideId "54123070"]
[BlackFideId "5106850"]
[WhiteElo "2155"]
[BlackElo "2261"]
[Result "1-0"]
[Round "11"]
[TimeControl "180+1"]
[Date "2022.07.05"]
[WhiteClock "0:00:10"]
[BlackClock "0:00:03"]

1. d4 {[%clk 0:03:00]}  d5 {[%clk 0:02:59]} 2. c4 {[%clk 0:03:01]}  dxc4 {[%clk 0:03:00]} 3. e3 {[%clk 0:03:01]}  Nc6 {[%clk 0:03:00]} 4. Bxc4 {[%clk 0:03:01]}  e5 {[%clk 0:03:00]} 5. d5 {[%clk 0:02:57]}  Na5 {[%clk 0:03:00]} 6. Be2 {[%clk 0:02:51]}  c6 {[%clk 0:02:59]} 7. Nc3 {[%clk 0:02:48]}  Nf6 {[%clk 0:02:54]} 8. dxc6 {[%clk 0:02:48]}  Qxd1+ {[%clk 0:02:52]} 9. Bxd1 {[%clk 0:02:49]}  Nxc6 {[%clk 0:02:52]} 10. Nf3 {[%clk 0:02:45]}  Be6 {[%clk 0:02:44]} 11. Ba4 {[%clk 0:02:44]}  Bd6 {[%clk 0:02:34]} 12. O-O {[%clk 0:02:36]}  Ke7 {[%clk 0:02:31]} 13. Nb5 {[%clk 0:02:31]}  Bc5 {[%clk 0:02:19]} 14. Nc7 {[%clk 0:02:29]}  Rac8 {[%clk 0:02:17]} 15. Nxe6 {[%clk 0:02:30]}  Kxe6 {[%clk 0:02:18]} 16. Bd2 {[%clk 0:02:22]}  h6 {[%clk 0:02:11]} 17. Rac1 {[%clk 0:02:18]}  Bb6 {[%clk 0:02:07]} 18. Rfd1 {[%clk 0:02:03]}  Ne4 {[%clk 0:02:02]} 19. Be1 {[%clk 0:01:57]}  Rhd8 {[%clk 0:01:58]} 20. Bb3+ {[%clk 0:01:53]}  Ke7 {[%clk 0:01:56]} 21. Bd5 {[%clk 0:01:54]}  f5 {[%clk 0:01:04]} 22. Bxc6 {[%clk 0:01:52]}  Rxd1 {[%clk 0:00:56]} 23. Rxd1 {[%clk 0:01:51]}  Rxc6 {[%clk 0:00:55]} 24. Nxe5 {[%clk 0:01:49]}  Rc2 {[%clk 0:00:55]} 25. Nd3 {[%clk 0:01:46]}  g5 {[%clk 0:00:48]} 26. Kf1 {[%clk 0:01:46]}  a5 {[%clk 0:00:41]} 27. a3 {[%clk 0:01:28]}  a4 {[%clk 0:00:40]} 28. Rc1 {[%clk 0:01:04]}  Nd2+ {[%clk 0:00:22]} 29. Ke2 {[%clk 0:01:02]}  Rxc1 {[%clk 0:00:18]} 30. Nxc1 {[%clk 0:01:03]}  Nc4 {[%clk 0:00:16]} 31. Bc3 {[%clk 0:01:03]}  Bc5 {[%clk 0:00:16]} 32. Nd3 {[%clk 0:00:59]}  Bd6 {[%clk 0:00:16]} 33. h3 {[%clk 0:00:55]}  b5 {[%clk 0:00:15]} 34. f3 {[%clk 0:00:54]}  Ke6 {[%clk 0:00:15]} 35. e4 {[%clk 0:00:53]}  fxe4 {[%clk 0:00:16]} 36. fxe4 {[%clk 0:00:54]}  Be7 {[%clk 0:00:14]} 37. Kf3 {[%clk 0:00:53]}  h5 {[%clk 0:00:13]} 38. g3 {[%clk 0:00:49]}  Bd6 {[%clk 0:00:14]} 39. h4 {[%clk 0:00:44]}  g4+ {[%clk 0:00:13]} 40. Kf2 {[%clk 0:00:45]}  Bc7 {[%clk 0:00:13]} 41. Nf4+ {[%clk 0:00:42]}  Kf7 {[%clk 0:00:11]} 42. Nxh5 {[%clk 0:00:42]}  Bb6+ {[%clk 0:00:11]} 43. Ke2 {[%clk 0:00:41]}  Bc7 {[%clk 0:00:11]} 44. Nf4 {[%clk 0:00:41]}  Be5 {[%clk 0:00:10]} 45. Bxe5 {[%clk 0:00:36]}  Nxe5 {[%clk 0:00:11]} 46. Nd3 {[%clk 0:00:36]}  Nc4 {[%clk 0:00:11]} 47. Kd1 {[%clk 0:00:22]}  Kg6 {[%clk 0:00:11]} 48. Kc2 {[%clk 0:00:20]}  Ne3+ {[%clk 0:00:11]} 49. Kc3 {[%clk 0:00:20]}  Nf1 {[%clk 0:00:11]} 50. Kb4 {[%clk 0:00:14]}  Nxg3 {[%clk 0:00:11]} 51. Kxb5 {[%clk 0:00:14]}  Nxe4 {[%clk 0:00:11]} 52. Ne5+ {[%clk 0:00:12]}  Kf5 {[%clk 0:00:11]} 53. Nxg4 {[%clk 0:00:13]}  Kxg4 {[%clk 0:00:11]} 54. Kxa4 {[%clk 0:00:13]}  Kxh4 {[%clk 0:00:11]} 55. Kb5 {[%clk 0:00:12]}  Kg5 {[%clk 0:00:12]} 56. a4 {[%clk 0:00:13]}  Nd6+ {[%clk 0:00:11]} 57. Kc5 {[%clk 0:00:11]}  Ne4+ {[%clk 0:00:11]} 58. Kc6 {[%clk 0:00:11]}  Kf5 {[%clk 0:00:09]} 59. a5 {[%clk 0:00:11]}  Ke5 {[%clk 0:00:03]} 60. a6 {[%clk 0:00:10]}  Nd6 {[%clk 0:00:02]} 61. a7 {[%clk 0:00:10]}  Nc4 {[%clk 0:00:01]} 62. a8=Q {[%clk 0:00:10]}  Kd4 {[%clk 0:00:02]} 63. b3 {[%clk 0:00:09]}  Nd2 {[%clk 0:00:02]} 64. Qd8+ {[%clk 0:00:09]}  Kc3 {[%clk 0:00:02]} 65. Qxd2+ {[%clk 0:00:10]}  Kxd2 {[%clk 0:00:03]} 66. b4 {[%clk 0:00:10]} 1-0


[Site "https://www.chess.com"]

[Event "Titled Tuesday Blitz July 05 Early 2022"]
[White "Xu, Yi"]
[Black "Preotu, Razvan"]
[WhiteFideId "8605564"]
[BlackFideId "2613280"]
[WhiteElo "2471"]
[BlackElo "2407"]
[Result "1/2-1/2"]
[Round "11"]
[TimeControl "180+1"]
[Date "2022.07.05"]
[WhiteClock "0:00:04"]
[BlackClock "0:00:02"]

1. e4 {[%clk 0:03:00]}  c5 {[%clk 0:02:59]} 2. Nf3 {[%clk 0:03:01]}  d6 {[%clk 0:02:59]} 3. d4 {[%clk 0:03:01]}  cxd4 {[%clk 0:03:00]} 4. Nxd4 {[%clk 0:03:02]}  Nf6 {[%clk 0:03:01]} 5. Nc3 {[%clk 0:03:02]}  a6 {[%clk 0:03:01]} 6. f3 {[%clk 0:03:02]}  e5 {[%clk 0:03:00]} 7. Nb3 {[%clk 0:03:03]}  Be6 {[%clk 0:03:00]} 8. Be3 {[%clk 0:03:03]}  h5 {[%clk 0:03:01]} 9. Qd2 {[%clk 0:03:04]}  Nbd7 {[%clk 0:03:01]} 10. O-O-O {[%clk 0:03:04]}  Be7 {[%clk 0:03:00]} 11. Kb1 {[%clk 0:03:04]}  Rc8 {[%clk 0:03:00]} 12. h4 {[%clk 0:03:04]}  b5 {[%clk 0:02:53]} 13. Bg5 {[%clk 0:03:04]}  O-O {[%clk 0:02:29]} 14. g4 {[%clk 0:02:22]}  hxg4 {[%clk 0:02:27]} 15. Be2 {[%clk 0:02:16]}  b4 {[%clk 0:02:16]} 16. Nd5 {[%clk 0:02:08]}  Nxd5 {[%clk 0:02:14]} 17. exd5 {[%clk 0:02:08]}  Bf5 {[%clk 0:02:14]} 18. Rc1 {[%clk 0:01:56]}  gxf3 {[%clk 0:01:31]} 19. Bxf3 {[%clk 0:01:56]}  Nf6 {[%clk 0:01:03]} 20. h5 {[%clk 0:01:45]}  Ne4 {[%clk 0:01:01]} 21. Bxe4 {[%clk 0:01:37]}  Bxg5 {[%clk 0:01:01]} 22. Qxb4 {[%clk 0:01:34]}  Bxe4 {[%clk 0:00:59]} 23. Qxe4 {[%clk 0:01:33]}  Bxc1 {[%clk 0:00:59]} 24. Nxc1 {[%clk 0:01:26]}  f5 {[%clk 0:00:57]} 25. Qg2 {[%clk 0:01:23]}  Qf6 {[%clk 0:00:56]} 26. h6 {[%clk 0:01:21]}  g6 {[%clk 0:00:53]} 27. Qe2 {[%clk 0:01:08]}  f4 {[%clk 0:00:47]} 28. Nd3 {[%clk 0:01:06]}  f3 {[%clk 0:00:47]} 29. Qe3 {[%clk 0:00:58]}  Kh7 {[%clk 0:00:35]} 30. Nf2 {[%clk 0:00:54]}  Qf4 {[%clk 0:00:28]} 31. Qa7+ {[%clk 0:00:52]}  Rf7 {[%clk 0:00:28]} 32. Qxa6 {[%clk 0:00:52]}  Qc4 {[%clk 0:00:29]} 33. Qxc4 {[%clk 0:00:49]}  Rxc4 {[%clk 0:00:30]} 34. Kc1 {[%clk 0:00:48]}  g5 {[%clk 0:00:20]} 35. b3 {[%clk 0:00:45]}  Rh4 {[%clk 0:00:17]} 36. Rxh4 {[%clk 0:00:39]}  gxh4 {[%clk 0:00:18]} 37. Kd2 {[%clk 0:00:40]}  Kxh6 {[%clk 0:00:08]} 38. Ke3 {[%clk 0:00:39]}  Kg5 {[%clk 0:00:07]} 39. c4 {[%clk 0:00:37]}  Ra7 {[%clk 0:00:07]} 40. Kxf3 {[%clk 0:00:33]}  Rxa2 {[%clk 0:00:03]} 41. Ne4+ {[%clk 0:00:31]}  Kg6 {[%clk 0:00:04]} 42. Kg4 {[%clk 0:00:31]}  Rb2 {[%clk 0:00:02]} 43. Nxd6 {[%clk 0:00:29]}  Rxb3 {[%clk 0:00:02]} 44. Kxh4 {[%clk 0:00:27]}  Rc3 {[%clk 0:00:02]} 45. Kg4 {[%clk 0:00:26]}  Rc1 {[%clk 0:00:02]} 46. Kf3 {[%clk 0:00:23]}  Kf6 {[%clk 0:00:03]} 47. Ke4 {[%clk 0:00:17]}  Re1+ {[%clk 0:00:02]} 48. Kd3 {[%clk 0:00:17]}  Rd1+ {[%clk 0:00:03]} 49. Ke2 {[%clk 0:00:15]}  Rd4 {[%clk 0:00:02]} 50. Ke3 {[%clk 0:00:15]}  Rd1 {[%clk 0:00:02]} 51. Nc8 {[%clk 0:00:12]}  Kf7 {[%clk 0:00:01]} 52. Nb6 {[%clk 0:00:10]}  Rc1 {[%clk 0:00:02]} 53. Ke4 {[%clk 0:00:10]}  Kf6 {[%clk 0:00:02]} 54. Nd7+ {[%clk 0:00:10]}  Ke7 {[%clk 0:00:03]} 55. Nxe5 {[%clk 0:00:10]}  Kd6 {[%clk 0:00:03]} 56. Kd4 {[%clk 0:00:08]}  Rd1+ {[%clk 0:00:04]} 57. Nd3 {[%clk 0:00:09]}  Rd2 {[%clk 0:00:03]} 58. c5+ {[%clk 0:00:09]}  Kd7 {[%clk 0:00:04]} 59. Kc3 {[%clk 0:00:09]}  Rd1 {[%clk 0:00:04]} 60. Ne5+ {[%clk 0:00:08]}  Kc7 {[%clk 0:00:04]} 61. Kc4 {[%clk 0:00:09]}  Rc1+ {[%clk 0:00:04]} 62. Kd4 {[%clk 0:00:09]}  Rd1+ {[%clk 0:00:05]} 63. Ke4 {[%clk 0:00:09]}  Rd2 {[%clk 0:00:04]} 64. Nc4 {[%clk 0:00:08]}  Rd1 {[%clk 0:00:04]} 65. Ne3 {[%clk 0:00:06]}  Rd2 {[%clk 0:00:04]} 66. Nf5 {[%clk 0:00:05]}  Rd1 {[%clk 0:00:04]} 67. Ke5 {[%clk 0:00:06]}  Re1+ {[%clk 0:00:03]} 68. Kd4 {[%clk 0:00:05]}  Rd1+ {[%clk 0:00:04]} 69. Kc4 {[%clk 0:00:05]}  Rc1+ {[%clk 0:00:05]} 70. Kd4 {[%clk 0:00:04]}  Rd1+ {[%clk 0:00:05]} 71. Ke5 {[%clk 0:00:05]}  Re1+ {[%clk 0:00:05]} 72. Kf6 {[%clk 0:00:05]}  Rc1 {[%clk 0:00:04]} 73. d6+ {[%clk 0:00:05]}  Kd7 {[%clk 0:00:04]} 74. Ke5 {[%clk 0:00:03]}  Rxc5+ {[%clk 0:00:04]} 75. Ke4 {[%clk 0:00:04]}  Ra5 {[%clk 0:00:04]} 76. Kf4 {[%clk 0:00:04]}  Ke6 {[%clk 0:00:04]} 77. Ne3 {[%clk 0:00:03]}  Ra4+ {[%clk 0:00:04]} 78. Kf3 {[%clk 0:00:03]}  Kxd6 {[%clk 0:00:05]} 79. Nf5+ {[%clk 0:00:03]}  Ke5 {[%clk 0:00:05]} 80. Ne3 {[%clk 0:00:04]}  Ra3 {[%clk 0:00:05]} 81. Kf2 {[%clk 0:00:02]}  Ke4 {[%clk 0:00:06]} 82. Ng2 {[%clk 0:00:02]}  Rb3 {[%clk 0:00:05]} 83. Ne1 {[%clk 0:00:02]}  Rb2+ {[%clk 0:00:05]} 84. Kg3 {[%clk 0:00:02]}  Re2 {[%clk 0:00:03]} 85. Ng2 {[%clk 0:00:03]}  Rd2 {[%clk 0:00:03]} 86. Nf4 {[%clk 0:00:03]}  Rd1 {[%clk 0:00:03]} 87. Ng2 {[%clk 0:00:03]}  Rd8 {[%clk 0:00:02]} 88. Kf2 {[%clk 0:00:03]}  Rf8+ {[%clk 0:00:02]} 89. Kg3 {[%clk 0:00:03]}  Rf7 {[%clk 0:00:02]} 90. Nh4 {[%clk 0:00:03]}  Rg7+ {[%clk 0:00:02]} 91. Kh3 {[%clk 0:00:03]}  Kf4 {[%clk 0:00:02]} 92. Ng2+ {[%clk 0:00:03]}  Kf3 {[%clk 0:00:02]} 93. Nh4+ {[%clk 0:00:04]}  Kf4 {[%clk 0:00:02]} 94. Ng2+ {[%clk 0:00:05]}  Kf5 {[%clk 0:00:03]} 95. Nh4+ {[%clk 0:00:05]}  Ke4 {[%clk 0:00:03]} 96. Ng2 {[%clk 0:00:04]}  Rg8 {[%clk 0:00:03]} 97. Nh4 {[%clk 0:00:03]}  Ke3 {[%clk 0:00:04]} 98. Ng2+ {[%clk 0:00:03]}  Kf2 {[%clk 0:00:04]} 99. Nh4 {[%clk 0:00:04]}  Rg5 {[%clk 0:00:04]} 100. Kh2 {[%clk 0:00:03]}  Ke3 {[%clk 0:00:02]} 101. Kh3 {[%clk 0:00:03]}  Kf2 {[%clk 0:00:02]} 102. Kh2 {[%clk 0:00:03]}  Rg4 {[%clk 0:00:03]} 103. Kh3 {[%clk 0:00:03]}  Rg3+ {[%clk 0:00:03]} 104. Kh2 {[%clk 0:00:04]}  Rd3 {[%clk 0:00:03]} 105. Ng2 {[%clk 0:00:03]}  Rd4 {[%clk 0:00:03]} 106. Kh3 {[%clk 0:00:03]}  Rd3+ {[%clk 0:00:03]} 107. Kh2 {[%clk 0:00:03]}  Rg3 {[%clk 0:00:02]} 108. Nh4 {[%clk 0:00:04]}  Rb3 {[%clk 0:00:02]} 109. Ng2 {[%clk 0:00:04]} 1/2-1/2


[Site "https://www.chess.com"]